[Event "Titled Tuesday Blitz April 19 Late 2022"]
[White "Romanchuk, Viktor"]
[Black "Nathan, Nitish"]
[WhiteFideId "14109271"]
[BlackFideId "30927870"]
[WhiteElo "2242"]
[BlackElo "2263"]
[Result "1/2-1/2"]
[Round "03"]
[TimeControl "180+1"]
[Date "2022.04.19"]
[WhiteClock "0:00:13"]
[BlackClock "0:00:22"]

1. d4 {[%clk 0:03:00]}  d5 {[%clk 0:02:59]} 2. c4 {[%clk 0:03:00]}  c6 {[%clk 0:02:59]} 3. Nc3 {[%clk 0:03:00]}  Nf6 {[%clk 0:03:00]} 4. e3 {[%clk 0:03:00]}  Bf5 {[%clk 0:02:57]} 5. cxd5 {[%clk 0:03:00]}  cxd5 {[%clk 0:02:57]} 6. Qb3 {[%clk 0:02:59]}  Qd7 {[%clk 0:02:55]} 7. Nf3 {[%clk 0:02:58]}  Nc6 {[%clk 0:02:54]} 8. Bd2 {[%clk 0:02:55]}  e6 {[%clk 0:02:49]} 9. Ne5 {[%clk 0:02:54]}  Qc7 {[%clk 0:02:48]} 10. Rc1 {[%clk 0:02:40]}  a6 {[%clk 0:02:43]} 11. Na4 {[%clk 0:02:29]}  Bd6 {[%clk 0:02:41]} 12. Nxc6 {[%clk 0:02:16]}  bxc6 {[%clk 0:02:40]} 13. Qb6 {[%clk 0:02:16]}  Kd7 {[%clk 0:02:06]} 14. Ba5 {[%clk 0:01:42]}  Rhb8 {[%clk 0:01:51]} 15. Nc5+ {[%clk 0:01:29]}  Kd8 {[%clk 0:01:32]} 16. Qxc7+ {[%clk 0:01:27]}  Bxc7 {[%clk 0:01:32]} 17. Bxc7+ {[%clk 0:01:28]}  Kxc7 {[%clk 0:01:31]} 18. Nxa6+ {[%clk 0:01:29]}  Rxa6 {[%clk 0:01:27]} 19. Bxa6 {[%clk 0:01:29]}  Rxb2 {[%clk 0:01:27]} 20. a4 {[%clk 0:00:43]}  Ne4 {[%clk 0:01:18]} 21. f3 {[%clk 0:00:32]}  Nd2 {[%clk 0:01:03]} 22. Bb5 {[%clk 0:00:26]}  Nc4 {[%clk 0:00:52]} 23. Bxc4 {[%clk 0:00:21]}  dxc4 {[%clk 0:00:52]} 24. e4 {[%clk 0:00:20]}  Bg6 {[%clk 0:00:52]} 25. O-O {[%clk 0:00:20]}  f5 {[%clk 0:00:52]} 26. exf5 {[%clk 0:00:19]}  Bxf5 {[%clk 0:00:52]} 27. Rfe1 {[%clk 0:00:16]}  Rb4 {[%clk 0:00:47]} 28. Ra1 {[%clk 0:00:15]}  c3 {[%clk 0:00:46]} 29. Rec1 {[%clk 0:00:14]}  c2 {[%clk 0:00:45]} 30. a5 {[%clk 0:00:14]}  Rxd4 {[%clk 0:00:44]} 31. a6 {[%clk 0:00:14]}  Kb8 {[%clk 0:00:44]} 32. a7+ {[%clk 0:00:14]}  Ka8 {[%clk 0:00:45]} 33. Kf2 {[%clk 0:00:14]}  Rd7 {[%clk 0:00:44]} 34. Ke3 {[%clk 0:00:14]}  Rxa7 {[%clk 0:00:44]} 35. Rxa7+ {[%clk 0:00:13]}  Kxa7 {[%clk 0:00:45]} 36. Kd4 {[%clk 0:00:12]}  Kb7 {[%clk 0:00:45]} 37. g4 {[%clk 0:00:11]}  Bg6 {[%clk 0:00:43]} 38. h4 {[%clk 0:00:12]}  h6 {[%clk 0:00:42]} 39. Ke5 {[%clk 0:00:11]}  Kb6 {[%clk 0:00:36]} 40. f4 {[%clk 0:00:12]}  Bd3 {[%clk 0:00:34]} 41. Kd4 {[%clk 0:00:11]}  Bh7 {[%clk 0:00:33]} 42. Ke5 {[%clk 0:00:10]}  Bd3 {[%clk 0:00:33]} 43. Kxe6 {[%clk 0:00:10]}  Kc5 {[%clk 0:00:33]} 44. f5 {[%clk 0:00:08]}  Kc4 {[%clk 0:00:32]} 45. g5 {[%clk 0:00:09]}  hxg5 {[%clk 0:00:28]} 46. hxg5 {[%clk 0:00:09]}  Kc3 {[%clk 0:00:28]} 47. f6 {[%clk 0:00:10]}  gxf6 {[%clk 0:00:28]} 48. gxf6 {[%clk 0:00:11]}  Kd2 {[%clk 0:00:28]} 49. Rxc2+ {[%clk 0:00:09]}  Kxc2 {[%clk 0:00:28]} 50. Kd6 {[%clk 0:00:09]}  Bc4 {[%clk 0:00:19]} 51. Kxc6 {[%clk 0:00:08]}  Ba2 {[%clk 0:00:19]} 52. Kd6 {[%clk 0:00:08]}  Kb2 {[%clk 0:00:19]} 53. Ke7 {[%clk 0:00:09]}  Bb3 {[%clk 0:00:19]} 54. Kf8 {[%clk 0:00:09]}  Ba2 {[%clk 0:00:19]} 55. Ke7 {[%clk 0:00:10]}  Bb3 {[%clk 0:00:20]} 56. Kd6 {[%clk 0:00:10]}  Ba2 {[%clk 0:00:20]} 57. Kd7 {[%clk 0:00:10]}  Bb3 {[%clk 0:00:20]} 58. Kd8 {[%clk 0:00:11]}  Ba2 {[%clk 0:00:21]} 59. Kc8 {[%clk 0:00:10]}  Bb3 {[%clk 0:00:21]} 60. Kc7 {[%clk 0:00:11]}  Ba2 {[%clk 0:00:21]} 61. Kb6 {[%clk 0:00:12]}  Bc4 {[%clk 0:00:22]} 62. Kc5 {[%clk 0:00:13]}  Bb3 {[%clk 0:00:22]} 63. f7 {[%clk 0:00:13]}  Bxf7 {[%clk 0:00:22]} 1/2-1/2


[Site "https://www.chess.com"]

[Event "Titled Tuesday Blitz April 19 Late 2022"]
[White "Romero Ruscalleda, Josep"]
[Black "Solon, Nathan"]
[WhiteFideId "2231859"]
[BlackFideId "2017229"]
[WhiteElo "2317"]
[BlackElo "2571"]
[Result "0-1"]
[Round "03"]
[TimeControl "180+1"]
[Date "2022.04.19"]
[WhiteClock "0:00:02"]
[BlackClock "0:00:20"]

1. e4 {[%clk 0:03:00]}  c5 {[%clk 0:02:59]} 2. c3 {[%clk 0:03:00]}  Nf6 {[%clk 0:02:59]} 3. e5 {[%clk 0:03:00]}  Nd5 {[%clk 0:02:59]} 4. Nf3 {[%clk 0:03:00]}  d6 {[%clk 0:02:59]} 5. Bc4 {[%clk 0:03:00]}  Nb6 {[%clk 0:02:58]} 6. Bb3 {[%clk 0:03:00]}  c4 {[%clk 0:02:53]} 7. Bc2 {[%clk 0:02:59]}  Nc6 {[%clk 0:02:53]} 8. exd6 {[%clk 0:02:59]}  Qxd6 {[%clk 0:02:54]} 9. O-O {[%clk 0:02:59]}  Bg4 {[%clk 0:02:50]} 10. Re1 {[%clk 0:02:59]}  e6 {[%clk 0:02:44]} 11. Qe2 {[%clk 0:02:58]}  Be7 {[%clk 0:02:40]} 12. Na3 {[%clk 0:02:57]}  O-O {[%clk 0:02:16]} 13. Nxc4 {[%clk 0:02:55]}  Nxc4 {[%clk 0:02:17]} 14. Qxc4 {[%clk 0:02:55]}  Bxf3 {[%clk 0:02:17]} 15. gxf3 {[%clk 0:02:54]}  e5 {[%clk 0:02:11]} 16. b3 {[%clk 0:02:42]}  Kh8 {[%clk 0:02:03]} 17. Qg4 {[%clk 0:02:33]}  Rad8 {[%clk 0:01:39]} 18. a4 {[%clk 0:02:28]}  g6 {[%clk 0:01:17]} 19. Re2 {[%clk 0:02:09]}  f5 {[%clk 0:01:17]} 20. Qg2 {[%clk 0:02:02]}  Qd5 {[%clk 0:01:17]} 21. f4 {[%clk 0:01:56]}  e4 {[%clk 0:01:15]} 22. Bb2 {[%clk 0:01:51]}  Bf6 {[%clk 0:01:12]} 23. Rd1 {[%clk 0:01:47]}  Nb4 {[%clk 0:01:06]} 24. c4 {[%clk 0:01:01]}  Qd6 {[%clk 0:01:06]} 25. Bxf6+ {[%clk 0:00:59]}  Rxf6 {[%clk 0:01:07]} 26. Bb1 {[%clk 0:00:59]}  Qxf4 {[%clk 0:01:05]} 27. d3 {[%clk 0:00:51]}  Rfd6 {[%clk 0:00:59]} 28. d4 {[%clk 0:00:48]}  Rxd4 {[%clk 0:00:58]} 29. Rde1 {[%clk 0:00:44]}  Rd1 {[%clk 0:00:56]} 30. Qh3 {[%clk 0:00:37]}  Qc1 {[%clk 0:00:51]} 31. Qe3 {[%clk 0:00:08]}  Rxe1+ {[%clk 0:00:32]} 32. Rxe1 {[%clk 0:00:08]}  Qxe3 {[%clk 0:00:32]} 33. fxe3 {[%clk 0:00:06]}  Rd2 {[%clk 0:00:31]} 34. h4 {[%clk 0:00:02]}  Kg7 {[%clk 0:00:29]} 35. h5 {[%clk 0:00:02]}  g5 {[%clk 0:00:25]} 36. Rf1 {[%clk 0:00:02]}  f4 {[%clk 0:00:20]} 0-1


[Site "https://www.chess.com"]

[Event "Titled Tuesday Blitz April 19 Late 2022"]
[White "Ronka, Erik"]
[Black "Ostrovskiy, Aleksandr"]
[WhiteFideId "505080"]
[BlackFideId "2034239"]
[WhiteElo "2264"]
[BlackElo "2340"]
[Result "0-1"]
[Round "03"]
[TimeControl "180+1"]
[Date "2022.04.19"]
[WhiteClock "0:01:23"]
[BlackClock "0:01:48"]

1. e4 {[%clk 0:02:59]}  d5 {[%clk 0:03:00]} 2. d4 {[%clk 0:02:56]}  dxe4 {[%clk 0:02:59]} 3. Nc3 {[%clk 0:02:56]}  Nf6 {[%clk 0:02:59]} 4. f3 {[%clk 0:02:57]}  exf3 {[%clk 0:02:59]} 5. Nxf3 {[%clk 0:02:58]}  Bf5 {[%clk 0:03:00]} 6. Bg5 {[%clk 0:02:55]}  e6 {[%clk 0:02:57]} 7. Qd2 {[%clk 0:02:52]}  c6 {[%clk 0:02:57]} 8. a3 {[%clk 0:02:50]}  Be7 {[%clk 0:02:56]} 9. O-O-O {[%clk 0:02:49]}  Nbd7 {[%clk 0:02:56]} 10. h3 {[%clk 0:02:43]}  Ne4 {[%clk 0:02:50]} 11. Nxe4 {[%clk 0:02:39]}  Bxe4 {[%clk 0:02:51]} 12. Be3 {[%clk 0:02:38]}  Nf6 {[%clk 0:02:47]} 13. Ne5 {[%clk 0:02:20]}  Qc7 {[%clk 0:02:37]} 14. Rg1 {[%clk 0:02:17]}  Nd5 {[%clk 0:02:35]} 15. Bf2 {[%clk 0:02:15]}  h6 {[%clk 0:02:27]} 16. Kb1 {[%clk 0:02:11]}  Bf6 {[%clk 0:02:18]} 17. Nc4 {[%clk 0:02:06]}  O-O-O {[%clk 0:02:15]} 18. g4 {[%clk 0:02:06]}  Nb6 {[%clk 0:02:07]} 19. Nxb6+ {[%clk 0:01:54]}  Qxb6 {[%clk 0:02:02]} 20. Rg3 {[%clk 0:01:23]}  Rd7 {[%clk 0:01:48]} 21. Rb3 {[%clk 0:01:23]}  Qxb3 {[%clk 0:01:48]} 0-1


[Site "https://www.chess.com"]

[Event "Titled Tuesday Blitz April 19 Late 2022"]
[White "Rosenberg, Evan S"]
[Black "Noboa Silva, Kevin"]
[WhiteFideId "2019299"]
[BlackFideId "3618471"]
[WhiteElo "2353"]
[BlackElo "2172"]
[Result "0-1"]
[Round "03"]
[TimeControl "180+1"]
[Date "2022.04.19"]
[WhiteClock "0:00:01"]
[BlackClock "0:00:58"]

1. d4 {[%clk 0:02:59]}  Nf6 {[%clk 0:02:57]} 2. Nf3 {[%clk 0:02:59]}  e6 {[%clk 0:02:57]} 3. c4 {[%clk 0:02:57]}  Bb4+ {[%clk 0:02:56]} 4. Nc3 {[%clk 0:02:56]}  b6 {[%clk 0:02:54]} 5. Qb3 {[%clk 0:02:52]}  Nc6 {[%clk 0:02:48]} 6. Bg5 {[%clk 0:02:47]}  h6 {[%clk 0:02:48]} 7. Bxf6 {[%clk 0:02:41]}  Qxf6 {[%clk 0:02:46]} 8. e3 {[%clk 0:02:42]}  O-O {[%clk 0:02:43]} 9. Be2 {[%clk 0:02:35]}  Bb7 {[%clk 0:02:42]} 10. O-O {[%clk 0:02:34]}  Bxc3 {[%clk 0:02:42]} 11. Qxc3 {[%clk 0:02:34]}  d6 {[%clk 0:02:41]} 12. Rac1 {[%clk 0:02:33]}  e5 {[%clk 0:02:38]} 13. d5 {[%clk 0:02:30]}  Ne7 {[%clk 0:02:36]} 14. Nd2 {[%clk 0:02:26]}  c6 {[%clk 0:02:31]} 15. Ne4 {[%clk 0:02:15]}  Qg6 {[%clk 0:02:17]} 16. Bd3 {[%clk 0:01:37]}  cxd5 {[%clk 0:02:08]} 17. cxd5 {[%clk 0:01:15]}  Nxd5 {[%clk 0:02:06]} 18. Qb3 {[%clk 0:01:07]}  Nxe3 {[%clk 0:01:50]} 19. fxe3 {[%clk 0:00:47]}  Bxe4 {[%clk 0:01:49]} 20. Bxe4 {[%clk 0:00:48]}  Qxe4 {[%clk 0:01:49]} 21. Rc7 {[%clk 0:00:38]}  d5 {[%clk 0:01:31]} 22. Rd7 {[%clk 0:00:35]}  Rad8 {[%clk 0:01:24]} 23. Rxa7 {[%clk 0:00:33]}  Rd6 {[%clk 0:01:14]} 24. g3 {[%clk 0:00:27]}  h5 {[%clk 0:01:12]} 25. Ra4 {[%clk 0:00:25]}  d4 {[%clk 0:01:11]} 26. Ra7 {[%clk 0:00:21]}  Qxe3+ {[%clk 0:01:08]} 27. Qxe3 {[%clk 0:00:21]}  dxe3 {[%clk 0:01:09]} 28. Re7 {[%clk 0:00:15]}  f6 {[%clk 0:01:08]} 29. Re1 {[%clk 0:00:13]}  Rd2 {[%clk 0:01:06]} 30. Rxe3 {[%clk 0:00:12]}  Rc8 {[%clk 0:01:05]} 31. Re1 {[%clk 0:00:10]}  Rxb2 {[%clk 0:01:04]} 32. a4 {[%clk 0:00:09]}  Rcc2 {[%clk 0:01:01]} 33. Re8+ {[%clk 0:00:03]}  Kf7 {[%clk 0:01:01]} 34. Rh8 {[%clk 0:00:03]}  Rg2+ {[%clk 0:01:01]} 35. Kh1 {[%clk 0:00:02]}  Rxh2+ {[%clk 0:01:01]} 36. Kg1 {[%clk 0:00:03]}  Rbg2+ {[%clk 0:01:01]} 37. Kf1 {[%clk 0:00:03]}  Ra2 {[%clk 0:01:01]} 38. Kg1 {[%clk 0:00:04]}  Rhg2+ {[%clk 0:01:01]} 39. Kh1 {[%clk 0:00:04]}  Rxg3 {[%clk 0:01:00]} 40. Rxh5 {[%clk 0:00:03]}  Rxa4 {[%clk 0:01:00]} 41. Rf1 {[%clk 0:00:02]}  Kg6 {[%clk 0:00:59]} 42. Rh8 {[%clk 0:00:01]}  b5 {[%clk 0:00:58]} 0-1


[Site "https://www.chess.com"]

[Event "Titled Tuesday Blitz April 19 Late 2022"]
[White "Sanchez, Robert"]
[Black "Taboas Rodriguez, Daniel"]
[WhiteFideId "2034360"]
[BlackFideId "2208466"]
[WhiteElo "2380"]
[BlackElo "2429"]
[Result "1-0"]
[Round "03"]
[TimeControl "180+1"]
[Date "2022.04.19"]
[WhiteClock "0:00:36"]
[BlackClock "0:01:32"]

1. e4 {[%clk 0:03:00]}  e6 {[%clk 0:03:00]} 2. d4 {[%clk 0:03:00]}  d5 {[%clk 0:03:00]} 3. Nd2 {[%clk 0:03:00]}  Nc6 {[%clk 0:03:00]} 4. Ngf3 {[%clk 0:02:59]}  Nf6 {[%clk 0:03:00]} 5. e5 {[%clk 0:02:59]}  Ne4 {[%clk 0:03:01]} 6. Bd3 {[%clk 0:02:58]}  Nxd2 {[%clk 0:03:00]} 7. Bxd2 {[%clk 0:02:58]}  Nb4 {[%clk 0:03:00]} 8. Be2 {[%clk 0:02:57]}  c5 {[%clk 0:03:00]} 9. c3 {[%clk 0:02:57]}  Nc6 {[%clk 0:03:00]} 10. Bd3 {[%clk 0:02:58]}  h6 {[%clk 0:02:57]} 11. O-O {[%clk 0:02:58]}  Bd7 {[%clk 0:02:56]} 12. a3 {[%clk 0:02:58]}  c4 {[%clk 0:02:54]} 13. Bc2 {[%clk 0:02:57]}  b5 {[%clk 0:02:55]} 14. b4 {[%clk 0:02:50]}  cxb3 {[%clk 0:02:52]} 15. Bxb3 {[%clk 0:02:51]}  Na5 {[%clk 0:02:52]} 16. Bc2 {[%clk 0:02:41]}  Nc4 {[%clk 0:02:52]} 17. a4 {[%clk 0:02:40]}  Nb2 {[%clk 0:02:49]} 18. Qe2 {[%clk 0:02:33]}  Nxa4 {[%clk 0:02:47]} 19. Bxa4 {[%clk 0:02:31]}  bxa4 {[%clk 0:02:48]} 20. c4 {[%clk 0:02:31]}  dxc4 {[%clk 0:02:47]} 21. Qxc4 {[%clk 0:02:28]}  Be7 {[%clk 0:02:48]} 22. d5 {[%clk 0:02:27]}  exd5 {[%clk 0:02:46]} 23. Qxd5 {[%clk 0:02:28]}  O-O {[%clk 0:02:46]} 24. Rfd1 {[%clk 0:02:27]}  Be6 {[%clk 0:02:44]} 25. Qe4 {[%clk 0:02:23]}  Bb3 {[%clk 0:02:41]} 26. Re1 {[%clk 0:02:09]}  Qb6 {[%clk 0:02:34]} 27. Be3 {[%clk 0:02:04]}  Qe6 {[%clk 0:02:33]} 28. Nd4 {[%clk 0:02:04]}  Qc4 {[%clk 0:02:06]} 29. Rac1 {[%clk 0:01:53]}  Qb4 {[%clk 0:02:02]} 30. Qf3 {[%clk 0:01:37]}  a5 {[%clk 0:01:49]} 31. Nc6 {[%clk 0:01:23]}  Qb7 {[%clk 0:01:49]} 32. Nxe7+ {[%clk 0:01:23]}  Qxe7 {[%clk 0:01:50]} 33. Bc5 {[%clk 0:01:23]}  Qe6 {[%clk 0:01:44]} 34. Bxf8 {[%clk 0:01:23]}  Rxf8 {[%clk 0:01:44]} 35. Rc5 {[%clk 0:01:18]}  Qb6 {[%clk 0:01:42]} 36. Qc3 {[%clk 0:01:15]}  Ra8 {[%clk 0:01:38]} 37. Rc8+ {[%clk 0:01:07]}  Rxc8 {[%clk 0:01:37]} 38. Qxc8+ {[%clk 0:01:08]}  Kh7 {[%clk 0:01:37]} 39. Qf5+ {[%clk 0:01:07]}  g6 {[%clk 0:01:37]} 40. Qf6 {[%clk 0:00:37]}  a3 {[%clk 0:01:32]} 41. Qxb6 {[%clk 0:00:36]} 1-0


[Site "https://www.chess.com"]

[Event "Titled Tuesday Blitz April 19 Late 2022"]
[White "Saraci, Nderim"]
[Black "Davtyan, David Arm."]
[WhiteFideId "6351921"]
[BlackFideId "13310046"]
[WhiteElo "2553"]
[BlackElo "2158"]
[Result "1/2-1/2"]
[Round "03"]
[TimeControl "180+1"]
[Date "2022.04.19"]
[WhiteClock "0:00:08"]
[BlackClock "0:00:19"]

1. b3 {[%clk 0:02:56]}  Nf6 {[%clk 0:02:59]} 2. Bb2 {[%clk 0:02:55]}  c5 {[%clk 0:03:00]} 3. e3 {[%clk 0:02:55]}  Nc6 {[%clk 0:03:00]} 4. Nf3 {[%clk 0:02:52]}  g6 {[%clk 0:03:00]} 5. Be2 {[%clk 0:02:45]}  Bg7 {[%clk 0:03:00]} 6. O-O {[%clk 0:02:46]}  O-O {[%clk 0:03:01]} 7. d4 {[%clk 0:02:46]}  cxd4 {[%clk 0:02:59]} 8. Nxd4 {[%clk 0:02:47]}  d5 {[%clk 0:02:59]} 9. Nd2 {[%clk 0:02:46]}  Re8 {[%clk 0:02:58]} 10. c4 {[%clk 0:02:46]}  e5 {[%clk 0:02:57]} 11. Nxc6 {[%clk 0:02:45]}  bxc6 {[%clk 0:02:58]} 12. Nf3 {[%clk 0:02:43]}  Ne4 {[%clk 0:02:53]} 13. Rc1 {[%clk 0:02:39]}  Bb7 {[%clk 0:02:49]} 14. cxd5 {[%clk 0:02:39]}  cxd5 {[%clk 0:02:47]} 15. Bb5 {[%clk 0:02:39]}  Re6 {[%clk 0:02:46]} 16. Bd3 {[%clk 0:02:36]}  f5 {[%clk 0:02:33]} 17. Rc2 {[%clk 0:02:27]}  g5 {[%clk 0:02:28]} 18. Qa1 {[%clk 0:02:19]}  d4 {[%clk 0:02:23]} 19. Bc4 {[%clk 0:02:03]}  Bd5 {[%clk 0:02:17]} 20. exd4 {[%clk 0:02:01]}  g4 {[%clk 0:02:12]} 21. Nxe5 {[%clk 0:01:57]}  Bxe5 {[%clk 0:02:11]} 22. dxe5 {[%clk 0:01:57]}  Bxc4 {[%clk 0:02:11]} 23. Rxc4 {[%clk 0:01:50]}  Qh4 {[%clk 0:02:11]} 24. Qc1 {[%clk 0:01:40]}  Rae8 {[%clk 0:02:01]} 25. Rc8 {[%clk 0:01:29]}  Kf7 {[%clk 0:01:57]} 26. Rxe8 {[%clk 0:01:27]}  Rxe8 {[%clk 0:01:56]} 27. Qc7+ {[%clk 0:01:21]}  Re7 {[%clk 0:01:55]} 28. e6+ {[%clk 0:01:19]}  Kxe6 {[%clk 0:01:53]} 29. Qe5+ {[%clk 0:01:19]}  Kf7 {[%clk 0:01:50]} 30. Qxf5+ {[%clk 0:01:19]}  Kg8 {[%clk 0:01:47]} 31. Bf6 {[%clk 0:01:10]}  Nxf6 {[%clk 0:01:42]} 32. Rd1 {[%clk 0:01:06]}  Kg7 {[%clk 0:01:39]} 33. g3 {[%clk 0:01:02]}  Qh6 {[%clk 0:01:37]} 34. Qc5 {[%clk 0:00:58]}  Rf7 {[%clk 0:01:32]} 35. Rd6 {[%clk 0:00:57]}  Qg6 {[%clk 0:01:28]} 36. Ra6 {[%clk 0:00:44]}  Qb1+ {[%clk 0:01:28]} 37. Kg2 {[%clk 0:00:44]}  Qe4+ {[%clk 0:01:28]} 38. Kg1 {[%clk 0:00:45]}  Nd5 {[%clk 0:01:24]} 39. Rxa7 {[%clk 0:00:39]}  Rxa7 {[%clk 0:00:55]} 40. Qxa7+ {[%clk 0:00:40]}  Kg6 {[%clk 0:00:53]} 41. Qa6+ {[%clk 0:00:40]}  Nf6 {[%clk 0:00:53]} 42. a4 {[%clk 0:00:29]}  h5 {[%clk 0:00:52]} 43. a5 {[%clk 0:00:28]}  h4 {[%clk 0:00:52]} 44. gxh4 {[%clk 0:00:28]}  Qe1+ {[%clk 0:00:50]} 45. Qf1 {[%clk 0:00:28]}  Qxa5 {[%clk 0:00:49]} 46. Qd3+ {[%clk 0:00:28]}  Kh5 {[%clk 0:00:47]} 47. h3 {[%clk 0:00:28]}  gxh3 {[%clk 0:00:45]} 48. Qxh3 {[%clk 0:00:26]}  Ng4 {[%clk 0:00:44]} 49. Qf3 {[%clk 0:00:25]}  Qe5 {[%clk 0:00:40]} 50. Kg2 {[%clk 0:00:22]}  Qh2+ {[%clk 0:00:39]} 51. Kf1 {[%clk 0:00:22]}  Qe5 {[%clk 0:00:40]} 52. b4 {[%clk 0:00:19]}  Qb5+ {[%clk 0:00:37]} 53. Kg2 {[%clk 0:00:15]}  Qxb4 {[%clk 0:00:35]} 54. Kg3 {[%clk 0:00:16]}  Qd6+ {[%clk 0:00:35]} 55. Qf4 {[%clk 0:00:16]}  Qg6 {[%clk 0:00:33]} 56. f3 {[%clk 0:00:12]}  Ne5+ {[%clk 0:00:31]} 57. Kh3 {[%clk 0:00:10]}  Qe6+ {[%clk 0:00:31]} 58. Kh2 {[%clk 0:00:10]}  Qa2+ {[%clk 0:00:30]} 59. Kg3 {[%clk 0:00:11]}  Qg8+ {[%clk 0:00:30]} 60. Kh3 {[%clk 0:00:09]}  Qc8+ {[%clk 0:00:28]} 61. Kg2 {[%clk 0:00:08]}  Qc2+ {[%clk 0:00:28]} 62. Kg3 {[%clk 0:00:08]}  Qg6+ {[%clk 0:00:27]} 63. Kh2 {[%clk 0:00:07]}  Qc2+ {[%clk 0:00:20]} 64. Kh3 {[%clk 0:00:07]}  Qc8+ {[%clk 0:00:19]} 65. Kg2 {[%clk 0:00:07]}  Qc2+ {[%clk 0:00:19]} 66. Kg3 {[%clk 0:00:08]}  Qg6+ {[%clk 0:00:19]} 1/2-1/2


[Site "https://www.chess.com"]

[Event "Titled Tuesday Blitz April 19 Late 2022"]
[White "Senthilkumar, Pranav"]
[Black "Barrientos, Sergio E"]
[WhiteFideId "2083477"]
[BlackFideId "4401824"]
[WhiteElo "2477"]
[BlackElo "2397"]
[Result "0-1"]
[Round "03"]
[TimeControl "180+1"]
[Date "2022.04.19"]
[WhiteClock "0:01:21"]
[BlackClock "0:02:09"]

1. Nf3 {[%clk 0:02:49]}  Nf6 {[%clk 0:02:59]} 2. g3 {[%clk 0:02:48]}  g6 {[%clk 0:02:59]} 3. Bg2 {[%clk 0:02:48]}  Bg7 {[%clk 0:03:00]} 4. O-O {[%clk 0:02:48]}  O-O {[%clk 0:03:00]} 5. c4 {[%clk 0:02:48]}  d6 {[%clk 0:02:59]} 6. d4 {[%clk 0:02:48]}  Nc6 {[%clk 0:02:59]} 7. Nc3 {[%clk 0:02:47]}  Bf5 {[%clk 0:02:58]} 8. d5 {[%clk 0:02:45]}  Na5 {[%clk 0:02:58]} 9. Nd2 {[%clk 0:02:40]}  c5 {[%clk 0:02:58]} 10. e4 {[%clk 0:02:39]}  Bg4 {[%clk 0:02:56]} 11. f3 {[%clk 0:02:39]}  Bd7 {[%clk 0:02:56]} 12. a3 {[%clk 0:02:27]}  Rc8 {[%clk 0:02:50]} 13. Qe2 {[%clk 0:02:21]}  e6 {[%clk 0:02:44]} 14. Kh1 {[%clk 0:02:20]}  exd5 {[%clk 0:02:43]} 15. cxd5 {[%clk 0:02:18]}  Re8 {[%clk 0:02:42]} 16. b3 {[%clk 0:02:13]}  Nxd5 {[%clk 0:02:33]} 17. Nxd5 {[%clk 0:02:12]}  Bxa1 {[%clk 0:02:33]} 18. b4 {[%clk 0:02:05]}  Nc6 {[%clk 0:02:27]} 19. Nb3 {[%clk 0:02:01]}  Nd4 {[%clk 0:02:25]} 20. Nxd4 {[%clk 0:01:55]}  Bxd4 {[%clk 0:02:25]} 21. Bb2 {[%clk 0:01:56]}  Be6 {[%clk 0:02:18]} 22. Bxd4 {[%clk 0:01:54]}  cxd4 {[%clk 0:02:18]} 23. Qd2 {[%clk 0:01:44]}  Bxd5 {[%clk 0:02:17]} 24. exd5 {[%clk 0:01:45]}  Qf6 {[%clk 0:02:16]} 25. f4 {[%clk 0:01:44]}  Rc3 {[%clk 0:02:15]} 26. Rd1 {[%clk 0:01:43]}  Rxa3 {[%clk 0:02:13]} 27. Qc2 {[%clk 0:01:41]}  d3 {[%clk 0:02:13]} 28. Rxd3 {[%clk 0:01:39]}  Re1+ {[%clk 0:02:12]} 29. Bf1 {[%clk 0:01:38]}  Rxf1+ {[%clk 0:02:12]} 30. Kg2 {[%clk 0:01:38]}  Rfa1 {[%clk 0:02:12]} 31. Qc8+ {[%clk 0:01:38]}  Kg7 {[%clk 0:02:11]} 32. Rxa3 {[%clk 0:01:38]}  Rxa3 {[%clk 0:02:11]} 33. Qxb7 {[%clk 0:01:39]}  Qb2+ {[%clk 0:02:10]} 34. Kh3 {[%clk 0:01:38]}  Qf2 {[%clk 0:02:10]} 35. f5 {[%clk 0:01:21]}  Qxf5+ {[%clk 0:02:09]} 0-1


[Site "https://www.chess.com"]

[Event "Titled Tuesday Blitz April 19 Late 2022"]
[White "Skliarov, Viktor"]
[Black "Pourkashiyan, Atousa"]
[WhiteFideId "14106736"]
[BlackFideId "12502014"]
[WhiteElo "2229"]
[BlackElo "2247"]
[Result "1-0"]
[Round "03"]
[TimeControl "180+1"]
[Date "2022.04.19"]
[WhiteClock "0:01:30"]
[BlackClock "0:01:04"]

1. e4 {[%clk 0:03:00]}  e5 {[%clk 0:01:39]} 2. Nc3 {[%clk 0:02:57]}  Nf6 {[%clk 0:01:39]} 3. Bc4 {[%clk 0:02:57]}  Bb4 {[%clk 0:01:39]} 4. Nge2 {[%clk 0:02:57]}  O-O {[%clk 0:01:40]} 5. a3 {[%clk 0:02:57]}  Bxc3 {[%clk 0:01:39]} 6. Nxc3 {[%clk 0:02:58]}  Nxe4 {[%clk 0:01:39]} 7. Nxe4 {[%clk 0:02:43]}  d5 {[%clk 0:01:40]} 8. Bd3 {[%clk 0:02:44]}  dxe4 {[%clk 0:01:40]} 9. Bxe4 {[%clk 0:02:44]}  Nc6 {[%clk 0:01:40]} 10. Bxc6 {[%clk 0:02:30]}  bxc6 {[%clk 0:01:40]} 11. O-O {[%clk 0:02:30]}  Bf5 {[%clk 0:01:39]} 12. d3 {[%clk 0:02:26]}  Bg6 {[%clk 0:01:38]} 13. Re1 {[%clk 0:02:21]}  f6 {[%clk 0:01:39]} 14. Be3 {[%clk 0:02:16]}  Qd6 {[%clk 0:01:39]} 15. b4 {[%clk 0:02:15]}  a5 {[%clk 0:01:39]} 16. Bc5 {[%clk 0:02:15]}  Qd5 {[%clk 0:01:39]} 17. Bxf8 {[%clk 0:02:14]}  Kxf8 {[%clk 0:01:40]} 18. bxa5 {[%clk 0:02:10]}  Qxa5 {[%clk 0:01:38]} 19. Qb1 {[%clk 0:02:10]}  Qa7 {[%clk 0:01:28]} 20. Qb4+ {[%clk 0:02:07]}  Ke8 {[%clk 0:01:25]} 21. Reb1 {[%clk 0:02:06]}  Rd8 {[%clk 0:01:19]} 22. a4 {[%clk 0:02:03]}  Bf7 {[%clk 0:01:15]} 23. a5 {[%clk 0:02:01]}  Bd5 {[%clk 0:01:11]} 24. a6 {[%clk 0:01:55]}  c5 {[%clk 0:01:11]} 25. Qb5+ {[%clk 0:01:54]}  Ke7 {[%clk 0:01:08]} 26. Ra5 {[%clk 0:01:51]}  Kd6 {[%clk 0:01:08]} 27. h3 {[%clk 0:01:41]}  h5 {[%clk 0:01:08]} 28. c3 {[%clk 0:01:37]}  g5 {[%clk 0:01:06]} 29. d4 {[%clk 0:01:36]}  exd4 {[%clk 0:01:06]} 30. cxd4 {[%clk 0:01:36]}  Bc6 {[%clk 0:01:06]} 31. Qxc5+ {[%clk 0:01:35]}  Qxc5 {[%clk 0:01:06]} 32. dxc5+ {[%clk 0:01:30]}  Ke6 {[%clk 0:01:04]} 33. a7 {[%clk 0:01:30]} 1-0


[Site "https://www.chess.com"]